[Event "Uralsk-ch Men 2019"]
[Site "Khanty-Mansiysk"]
[Date "2019.03.13"]
[Round "2.6"]
[White "Evgeni, Polosin"]
[Black "Aleksander, Gutenev"]
[Result "0-1"]
[ECO "B30"]
[WhiteElo "2140"]
[BlackElo "2452"]
[Annotator "RC"]
[PlyCount "54"]
[EventDate "2019.03.12"]
[EventType "swiss"]
[EventCountry "RUS"]
[SourceTitle "playchess.com"]
[Source "ChessBase"]
[SourceQuality "1"]
[TimeControl "5400+30"]

1. e4 {[%emt 0:10:24]} c5 {[%emt 0:00:02]} 2. Nf3 {[%emt 0:00:34]} Nc6 {[%emt 0:00:37]} 3. c3 {[%emt 0:01:49]} Nf6 {[%emt 0:00:06]} 4. e5 {[%emt 0:00:37]} Nd5 {[%emt 0:00:07]} 5. d4 {[%emt 0:01:28]} cxd4 {[%emt 0:00:08]} 6. cxd4 {[%emt 0:02:39]} d6 {[%emt 0:00:06]} 7. Be2 {[%emt 0:01:16]} g6 {[%emt 0:06:31]} 8. O-O {[%emt 0:04:06]} Bg7 {[%emt 0:00:30]} 9. Na3 {[%emt 0:00:33]} dxe5 {[%emt 0:06:54]} 10. Nxe5 {[%emt 0:05:31]} Nxe5 {[%emt 0:02:46]} 11. dxe5 {[%emt 0:00:12]} O-O {[%emt 0:00:07]} 12. f4 {[%emt 0:08:24]} Qb6+ {[%emt 0:08:32]} 13. Kh1 {[%emt 0:00:06]} Be6 {[%emt 0:01:07]} 14. Bc4 {[%emt 0:36:04]} Rfd8 {[%emt 0:02:44]} 15. Qe2 {[%emt 0:03:03]} Rac8 {[%emt 0:04:44]} 16. Bb3 {[%emt 0:02:16]} a6 {[%emt 0:04:30]} 17. Bd2 {[%emt 0:02:20]} Qd4 {[%emt 0:07:39]} 18. Ba5 {[%emt 0:04:37]} b6 {[%emt 0:13:26]} 19. Rad1 {[%emt 0:01:08]} Qc5 {[%emt 0:00:21]} 20. Be1 {[%emt 0:00:13]} b5 {[%emt 0:03:05]} 21. h3 {[%emt 0:04:56]} Rd7 {[%emt 0:18:17]} 22. g4 {[%emt 0:04:23]} Ne3 {[%emt 0:12:08]} 23. Bxe6 {[%emt 0:01:58]} Rxd1 {[%emt 0:00:06]} 24. Bxc8 {[%emt 0:00:03]} Qd5+ {[%emt 0:00:07]} 25. Qf3 {[%emt 0:01:59]} Rxe1 {[%emt 0:00:33]} 26. Qxd5 {[%emt 0:00:05]} Rxf1+ {[%emt 0:00:06]} 27. Kh2 {[%emt 0:00:02]} Nxd5 {[%emt 0:00:05]} 0-1

[Event "Uralsk-ch Men 2019"]
[Site "Khanty-Mansiysk"]
[Date "2019.03.16"]
[Round "5.2"]
[White "Rozhkov, Viacheslav"]
[Black "Iljiushenok, Ilia"]
[Result "1/2-1/2"]
[ECO "C02"]
[WhiteElo "2255"]
[BlackElo "2524"]
[Annotator "ChessBase"]
[PlyCount "114"]
[EventDate "2019.03.12"]
[EventType "swiss"]
[EventCountry "RUS"]
[SourceTitle "playchess.com"]
[Source "ChessBase"]
[SourceQuality "1"]
[TimeControl "5400+30"]

1. e4 {[%emt 0:00:00]} e6 {[%emt 0:00:00]} 2. d4 {[%emt 0:00:00]} d5 {[%emt 0:00:00]} 3. e5 {[%emt 0:00:18]} c5 {[%emt 0:00:00]} 4. c3 {[%emt 0:00:04]} Nc6 {[%emt 0:00:00]} 5. Nf3 {[%emt 0:00:32]} Bd7 {[%emt 0:00:28]} 6. a3 {[%emt 0:01:41]} Nge7 {[%emt 0:01:52]} 7. Be3 {[%emt 0:03:13]} Nf5 {[%emt 0:02:14]} 8. Bd3 {[%emt 0:01:19]} Nxe3 {[%emt 0:06:40]} 9. fxe3 {[%emt 0:00:06]} f6 {[%emt 0:00:44]} 10. O-O {[%emt 0:00:28]} c4 {[%emt 0:06:27]} 11. Bc2 {[%emt 0:35:37]} f5 {[%emt 0:06:01]} 12. Nbd2 {[%emt 0:03:15]} Na5 {[%emt 0:07:04]} 13. Kh1 {[%emt 0:16:15]} Be7 {[%emt 0:14:33]} 14. g4 {[%emt 0:01:09]} g6 {[%emt 0:03:16]} 15. gxf5 {[%emt 0:01:32]} exf5 {[%emt 0:00:56]} 16. Rg1 {[%emt 0:07:42]} b5 {[%emt 0:10:53]} 17. Nf1 {[%emt 0:06:21]} Be6 {[%emt 0:06:06]} 18. Ng3 {[%emt 0:01:38]} Nc6 {[%emt 0:05:57]} 19. Ne2 {[%emt 0:00:33]} Qd7 {[%emt 0:03:09]} 20. Nf4 {[%emt 0:00:09]} a5 {[%emt 0:01:20]} 21. Ng5 {[%emt 0:02:01]} Bxg5 {[%emt 0:00:32]} 22. Rxg5 {[%emt 0:00:02]} Ne7 {[%emt 0:00:57]} 23. Qf3 {[%emt 0:01:18]} Bf7 {[%emt 0:06:55]} 24. Rg2 {[%emt 0:06:16]} Qc6 {[%emt 0:01:55]} 25. b3 {[%emt 0:02:21]} Kd7 {[%emt 0:02:40]} 26. Rb1 {[%emt 0:01:29]} Rhb8 {[%emt 0:01:03]} 27. Qh3 {[%emt 0:01:27]} Bg8 {[%emt 0:00:34]} 28. e4 {[%emt 0:00:32]} Rf8 {[%emt 0:05:09]} 29. bxc4 {[%emt 0:01:23]} bxc4 {[%emt 0:00:03]} 30. exf5 {[%emt 0:00:04]} Nxf5 {[%emt 0:00:04]} 31. Nh5 {[%emt 0:03:00]} Kc7 {[%emt 0:01:14]} 32. Nf6 {[%emt 0:01:28]} Be6 {[%emt 0:01:05]} 33. Bxf5 {[%emt 0:00:06]} Bxf5 {[%emt 0:00:09]} 34. Qxh7+ {[%emt 0:00:06]} Kc8 {[%emt 0:00:04]} 35. Re1 {[%emt 0:01:36]} Rb8 {[%emt 0:00:30]} 36. Qg7 {[%emt 0:00:40]} Rd8 {[%emt 0:00:09]} 37. Kg1 {[%emt 0:00:58]} Rb7 {[%emt 0:00:12]} 38. Qh6 {[%emt 0:00:01]} Qe6 {[%emt 0:00:45]} 39. Qh4 {[%emt 0:01:15]} Rb3 {[%emt 0:00:40]} 40. Rc1 {[%emt 0:00:48]} a4 {[%emt 0:00:15]} 41. Qh7 {[%emt 0:00:08]} Kb8 {[%emt 0:02:14]} 42. h4 {[%emt 0:00:46]} Rb7 {[%emt 0:02:55]} 43. Qh6 {[%emt 0:00:03]} Ka8 {[%emt 0:00:23]} 44. Qf4 {[%emt 0:00:42]} Rb3 {[%emt 0:01:03]} 45. h5 {[%emt 0:00:06]} gxh5 {[%emt 0:00:15]} 46. Rg7 {[%emt 0:00:46]} Rb2 {[%emt 0:00:26]} 47. Qh4 {[%emt 0:00:58]} Rdb8 {[%emt 0:00:20]} 48. Nxh5 {[%emt 0:00:14]} Be4 {[%emt 0:00:38]} 49. Nf4 {[%emt 0:00:08]} Qf5 {[%emt 0:02:06]} 50. Qf6 {[%emt 0:00:05]} Qxf6 {[%emt 0:01:12]} 51. exf6 {[%emt 0:00:01]} Rf8 {[%emt 0:00:04]} 52. Nh5 {[%emt 0:01:36]} Bf3 {[%emt 0:00:08]} 53. Rg5 {[%emt 0:00:49]} Bxh5 {[%emt 0:00:28]} 54. Rxh5 {[%emt 0:00:01]} Rxf6 {[%emt 0:00:04]} 55. Rxd5 {[%emt 0:00:07]} Rg6+ {[%emt 0:01:16]} 56. Kh1 {[%emt 0:00:04]} Rh6+ {[%emt 0:00:44]} 57. Kg1 {[%emt 0:00:01]} Rg6+ {[%emt 0:00:10]} 1/2-1/2

[Event "Uralsk-ch Men 2019"]
[Site "Khanty-Mansiysk"]
[Date "2019.03.16"]
[Round "5.3"]
[White "Savitskiy, Sergey"]
[Black "Kabanov, Nikolai"]
[Result "1-0"]
[ECO "B28"]
[WhiteElo "2401"]
[BlackElo "2447"]
[Annotator "NA RC"]
[PlyCount "53"]
[EventDate "2019.03.12"]
[EventType "swiss"]
[EventCountry "RUS"]
[SourceTitle "playchess.com"]
[Source "ChessBase"]
[SourceQuality "1"]
[TimeControl "5400+30"]

{[%evp 14,48,0,11,0,-8,14,-2,15,22,20,25,27,0,0,0,32767,18,39,56,46,4,11,-18,-4,-8,0,0,0,0,0,-35,48,32767,267,0,1197]} 1. e4 {[%emt 0:00:00]} c5 {[%emt 0:00:00]} 2. Nf3 {[%emt 0:00:00]} a6 {[%emt 0:00:00]} 3. Nc3 {[%emt 0:00:00]} b5 {[%emt 0:00:00]} 4. d4 {[%emt 0:00:23]} cxd4 {[%emt 0:00:00]} 5. Nxd4 {[%emt 0:00:05]} e6 {[%emt 0:00:06]} 6. Be3 {[%emt 0:07:52]} Bb7 {[%emt 0:00:39]} 7. Bd3 {[%emt 0:00:09]} Qc7 {[%emt 0:01:22]} 8. O-O {[%emt 0:16:01]} Nf6 {[%emt 0:00:46]} 9. a3 {[%emt 0:00:12]} Nc6 {[%emt 0:03:43]} 10. Nxc6 {[%emt 0:08:42] B48: Sicilian: Taimanov: 5 Nc3 Qc7 6 Be3 a6 without Be2} Bxc6 {[%emt 0:02:39]} 11. f4 {[%emt 0:01:02]} d6 {[%emt 0:02:40]} 12. Qf3 {[%emt 0:01:49]} Be7 {[%emt 0:08:07]} 13. Qh3 {[%emt 0:08:47]} h5 {[%emt 0:12:11]} 14. Kh1 {[%emt 0:07:01]} Qb7 {[%emt 0:01:54]} 15. Bd4 $146 {[%emt 0:01:32]} ({Predecessor:} 15. f5 e5 16. Bg5 Nd7 17. Qh4 Bxg5 18. Qxg5 Nf6 19. Rad1 h4 20. h3 O-O-O 21. Rfe1 Nh5 22. Qxh4 Nf4 23. Qg4 Kb8 {½-½ (23) Slingerland,F (2354)-Horvath,C (2537) Leiden 2008}) 15... b4 {[%emt 0:05:01]} 16. axb4 {[%emt 0:06:54]} Qxb4 {[%emt 0:04:42] Double Attack} 17. Bxf6 {[%emt 0:04:11]} Bxf6 {[%emt 0:08:43]} 18. e5 {[%emt 0:00:49]} dxe5 {[%emt 0:05:00]} 19. fxe5 {[%emt 0:03:25]} Be7 {[%emt 0:00:14]} 20. Bg6 {[%emt 0:03:57]} fxg6 {[%emt 0:00:47]} 21. Qxe6 {[%emt 0:00:09] Double Attack} Qb7 $1 {[%emt 0:01:15]} 22. Qxg6+ {[%emt 0:00:27] Double Attack} Kd8 {[%emt 0:00:05]} (22... Kd7 $1 $15 23. Rad1+ Kc7) 23. Rf7 {[%emt 0:00:43]} Re8 $2 {[%emt 0:01:23]} (23... Ra7 $1 $14) 24. Rxg7 $2 {[%emt 0:05:34]} (24. Rd1+ $18 Kc8 25. Rxg7) 24... h4 $18 {[%emt 0:01:48]} (24... Kc7 $11) 25. Rd1+ {[%emt 0:04:58]} Kc8 {[%emt 0:01:51]} 26. Nd5 {[%emt 0:00:12]} Ra7 {[%emt 0:02:27]} 27. Rxe7 {[%emt 0:00:57]} 1-0

[Event "Uralsk-ch Men 2019"]
[Site "Khanty-Mansiysk"]
[Date "2019.03.16"]
[Round "5.6"]
[White "Yaroslav, Remizov"]
[Black "Alexsander, Dubinin"]
[Result "1/2-1/2"]
[ECO "B33"]
[WhiteElo "2389"]
[BlackElo "2180"]
[Annotator "NA RC"]
[PlyCount "82"]
[EventDate "2019.03.12"]
[EventType "swiss"]
[EventCountry "RUS"]
[SourceTitle "playchess.com"]
[Source "ChessBase"]
[SourceQuality "1"]
[TimeControl "5400+30"]

1. e4 {[%emt 0:00:00]} c5 {[%emt 0:00:00]} 2. Nf3 {[%emt 0:00:00]} Nc6 {[%emt 0:00:00]} 3. d4 {[%emt 0:00:00]} cxd4 {[%emt 0:00:00]} 4. Nxd4 {[%emt 0:00:00]} Nf6 {[%emt 0:00:00]} 5. Nc3 {[%emt 0:00:00]} e5 {[%emt 0:00:02]} 6. Ndb5 {[%emt 0:00:00]} d6 {[%emt 0:00:08]} 7. Bg5 {[%emt 0:00:05]} a6 {[%emt 0:00:11]} 8. Na3 {[%emt 0:00:06]} b5 {[%emt 0:00:09]} 9. Bxf6 {[%emt 0:00:05]} gxf6 {[%emt 0:00:41]} 10. Nd5 {[%emt 0:00:06]} f5 {[%emt 0:01:13]} 11. Bxb5 {[%emt 0:00:11]} axb5 {[%emt 0:00:14]} 12. Nxb5 {[%emt 0:00:04]} Ra4 {[%emt 0:04:30]} 13. Nbc7+ {[%emt 0:00:21]} Kd7 {[%emt 0:00:14]} 14. O-O {[%emt 0:00:13]} Rxe4 {[%emt 0:05:54]} 15. Qh5 {[%emt 0:00:10]} Nd4 {[%emt 0:05:30]} 16. c3 {[%emt 0:01:36]} ({Much weaker is} 16. Qxf7+ Kc6 $15) 16... Ne2+ {[%emt 0:04:58]} 17. Kh1 {[%emt 0:00:01]} Kc6 {[%emt 0:01:36]} 18. g3 $1 {[%emt 0:00:28]} ({Much worse is} 18. Qxf7 Qd7 $17) 18... Rg8 {[%emt 0:25:13]} 19. Qf3 {[%emt 0:52:22]} Be6 {[%emt 0:10:11]} (19... Qxc7 $11 20. Nxc7 Kxc7) 20. Nxe6 {[%emt 0:04:42]} fxe6 {[%emt 0:00:10]} 21. Ne3 {[%emt 0:00:02]} Qb6 {[%emt 0:14:02]} 22. Qxe2 {[%emt 0:01:55]} Bh6 {[%emt 0:01:49]} 23. a4 {[%emt 0:06:45]} Bxe3 {[%emt 0:05:12]} 24. a5 {[%emt 0:01:16]} Qb5 {[%emt 0:04:35]} 25. Qxb5+ {[%emt 0:00:11]} Kxb5 {[%emt 0:00:02]} 26. fxe3 {[%emt 0:00:01]} Ra8 {[%emt 0:00:43]} 27. Rfc1 {[%emt 0:20:28]} ({White should play} 27. Kg1 $11) 27... Ra6 {[%emt 0:04:25]} 28. Ra3 {[%emt 0:00:59]} Rxa5 {[%emt 0:01:22]} 29. c4+ {[%emt 0:00:11]} Kb4 {[%emt 0:00:23]} 30. Rxa5 {[%emt 0:00:04]} Kxa5 {[%emt 0:00:04]} 31. Rd1 $15 {[%emt 0:00:08]} Rxe3 {[%emt 0:02:18]} 32. Rxd6 {[%emt 0:00:40]} Kb4 {[%emt 0:00:20]} 33. Rc6 {[%emt 0:10:47]} e4 {[%emt 0:00:23]} 34. Kg1 {[%emt 0:01:33]} Re2 {[%emt 0:00:48]} 35. c5 {[%emt 0:01:02]} Rc2 {[%emt 0:00:24]} 36. Rxe6 {[%emt 0:00:39]} Kxc5 {[%emt 0:00:10]} 37. g4 {[%emt 0:00:11]} fxg4 {[%emt 0:00:42]} 38. Rxe4 {[%emt 0:00:05]} Rxb2 {[%emt 0:00:11]} 39. Rxg4 {[%emt 0:00:03]} Kd5 {[%emt 0:00:35]} 40. Rg7 {[%emt 0:00:12]} Ke5 {[%emt 0:00:20]} 41. Rxh7 {[%emt 0:00:04]} Kf5 {[%emt 0:00:09]} 1/2-1/2

[Event "Uralsk-ch Men 2019"]
[Site "Khanty-Mansiysk"]
[Date "2019.03.17"]
[Round "6.3"]
[White "Kazantsev, Nikita"]
[Black "Rozhkov, Viacheslav"]
[Result "0-1"]
[ECO "B51"]
[WhiteElo "2219"]
[BlackElo "2255"]
[Annotator "NA"]
[PlyCount "72"]
[EventDate "2019.03.12"]
[EventType "swiss"]
[EventCountry "RUS"]
[SourceTitle "playchess.com"]
[Source "ChessBase"]
[SourceQuality "1"]
[TimeControl "5400+30"]

1. e4 {[%emt 0:00:00]} c5 {[%emt 0:00:00]} 2. Nf3 {[%emt 0:00:06]} d6 {[%emt 0:00:10]} 3. Bb5+ {[%emt 0:00:19]} Nd7 {[%emt 0:00:49]} 4. d4 {[%emt 0:01:15]} cxd4 {[%emt 0:12:05]} 5. Qxd4 {[%emt 0:01:25]} a6 {[%emt 0:03:01]} 6. Bxd7+ {[%emt 0:02:25]} Bxd7 {[%emt 0:00:05]} 7. O-O {[%emt 0:00:04]} e5 {[%emt 0:08:22]} 8. Qd3 {[%emt 0:02:46]} Rc8 {[%emt 0:03:23]} 9. Nc3 {[%emt 0:07:17]} Be7 {[%emt 0:01:09]} 10. Rd1 {[%emt 0:01:44]} Be6 {[%emt 0:01:15]} 11. Nd5 {[%emt 0:03:14]} Bxd5 {[%emt 0:05:06]} 12. Qxd5 {[%emt 0:05:14]} Qc7 {[%emt 0:00:09]} 13. Ng5 {[%emt 0:16:31]} Bf8 {[%emt 0:06:28]} 14. Be3 {[%emt 0:11:37]} ({White should play} 14. Rd3 $14 Qe7 15. Qb3) 14... Nf6 {[%emt 0:00:52]} 15. Qd3 {[%emt 0:00:12]} h6 {[%emt 0:02:13]} 16. Nf3 $17 {[%emt 0:00:04]} Qxc2 {[%emt 0:01:55]} 17. Qa3 {[%emt 0:01:14]} Qxe4 {[%emt 0:03:02]} 18. Rac1 {[%emt 0:07:31]} Rxc1 {[%emt 0:02:11]} 19. Rxc1 {[%emt 0:00:04]} Be7 {[%emt 0:00:06]} 20. Rc8+ {[%emt 0:05:52]} Kd7 {[%emt 0:00:04]} 21. Nd2 {[%emt 0:00:09]} Qh7 {[%emt 0:08:21]} 22. Rc1 {[%emt 0:13:51]} Rc8 {[%emt 0:00:17]} 23. Nc4 {[%emt 0:00:06]} Rxc4 {[%emt 0:01:27]} 24. Rxc4 {[%emt 0:01:07]} d5 {[%emt 0:00:02]} 25. Rc7+ {[%emt 0:06:33]} Kxc7 {[%emt 0:00:20]} 26. Qxe7+ {[%emt 0:00:07]} Nd7 {[%emt 0:00:04]} 27. h3 {[%emt 0:00:24]} d4 {[%emt 0:00:39]} 28. Bd2 {[%emt 0:00:23]} Qb1+ {[%emt 0:00:05]} 29. Kh2 {[%emt 0:00:06]} Qxb2 {[%emt 0:00:12]} 30. Ba5+ {[%emt 0:00:48]} b6 {[%emt 0:00:55]} 31. Bb4 {[%emt 0:00:03]} a5 {[%emt 0:15:30]} 32. Qd6+ {[%emt 0:06:31]} Kd8 {[%emt 0:00:30]} 33. Ba3 {[%emt 0:00:09]} Qxa2 {[%emt 0:01:09]} 34. Qe7+ {[%emt 0:00:44]} Kc8 {[%emt 0:00:08]} 35. Qe8+ {[%emt 0:00:10]} Kc7 {[%emt 0:00:11]} 36. Be7 {[%emt 0:04:09]} Qd5 {[%emt 0:00:11]} 0-1

[Event "Uralsk-ch Men 2019"]
[Site "Khanty-Mansiysk"]
[Date "2019.03.17"]
[Round "6.5"]
[White "Radzhabov, Rodion"]
[Black "Yaroslav, Remizov"]
[Result "1-0"]
[ECO "B24"]
[WhiteElo "2366"]
[BlackElo "2389"]
[Annotator "NA"]
[PlyCount "107"]
[EventDate "2019.03.12"]
[EventType "swiss"]
[EventCountry "RUS"]
[SourceTitle "playchess.com"]
[Source "ChessBase"]
[SourceQuality "1"]
[TimeControl "5400+30"]

1. e4 {[%emt 0:00:00]} c5 {[%emt 0:00:00]} 2. Nc3 {[%emt 0:00:00]} Nc6 {[%emt 0:00:03]} 3. Bb5 {[%emt 0:00:00]} Nd4 {[%emt 0:01:56]} 4. Bc4 {[%emt 0:00:12]} e6 {[%emt 0:03:04]} 5. Nge2 {[%emt 0:01:20]} Nf6 {[%emt 0:01:11]} 6. O-O {[%emt 0:09:19]} a6 {[%emt 0:05:36]} 7. d3 {[%emt 0:01:51] LiveBook: 130 Games} d5 {[%emt 0:02:56]} 8. Bb3 {[%emt 0:07:02]} Nxb3 {[%emt 0:05:29]} 9. axb3 {[%emt 0:00:32]} d4 {[%emt 0:02:26]} 10. Nb1 {[%emt 0:01:26]} Be7 {[%emt 0:03:09]} 11. f4 {[%emt 0:02:40]} O-O {[%emt 0:19:44]} 12. Ng3 {[%emt 0:02:39]} Ne8 {[%emt 0:04:57]} 13. Nd2 {[%emt 0:01:13]} f5 $11 {[%emt 0:01:22]} 14. Qe2 {[%emt 0:03:52]} Bh4 {[%emt 0:04:49]} 15. Nh1 {[%emt 0:15:10]} Bd7 {[%emt 0:11:23]} 16. Nf3 {[%emt 0:07:51]} fxe4 {[%emt 0:08:32]} 17. Qxe4 {[%emt 0:00:18]} Nd6 {[%emt 0:00:10]} 18. Qe2 {[%emt 0:00:25]} Re8 {[%emt 0:01:58]} 19. Ne5 {[%emt 0:06:03]} Bf6 {[%emt 0:03:45]} 20. Nf2 {[%emt 0:04:37]} Bxe5 {[%emt 0:00:53]} 21. fxe5 {[%emt 0:00:29]} Nf5 {[%emt 0:00:29]} 22. Ne4 {[%emt 0:00:48]} Bc6 {[%emt 0:01:11]} 23. Bg5 {[%emt 0:26:22]} Qc7 {[%emt 0:04:03]} 24. Qg4 {[%emt 0:06:04]} h6 {[%emt 0:08:34]} 25. Bd2 {[%emt 0:01:22]} Bxe4 {[%emt 0:03:32]} 26. Qxe4 {[%emt 0:00:05]} Rf8 {[%emt 0:00:48]} 27. Rf4 {[%emt 0:00:47]} Rad8 {[%emt 0:00:50]} 28. Raf1 {[%emt 0:00:32]} g5 {[%emt 0:00:33]} 29. R4f2 {[%emt 0:00:39]} Ng7 {[%emt 0:00:35]} 30. Rf6 {[%emt 0:00:14]} Nf5 {[%emt 0:00:28]} 31. Rxe6 {[%emt 0:00:30]} Qh7 {[%emt 0:00:02]} 32. Rf6 {[%emt 0:00:40]} Rxf6 {[%emt 0:00:30]} 33. exf6 {[%emt 0:00:01]} Nd6 {[%emt 0:00:16]} 34. f7+ {[%emt 0:00:22]} Qxf7 {[%emt 0:00:02]} 35. Qe5 {[%emt 0:00:52]} Qg6 {[%emt 0:00:45]} 36. Rf6 {[%emt 0:00:40]} Qg7 {[%emt 0:00:02]} 37. Qe6+ {[%emt 0:00:50]} Kh7 {[%emt 0:00:07]} 38. h4 {[%emt 0:00:26]} Rf8 {[%emt 0:00:26]} 39. hxg5 {[%emt 0:00:17]} Rxf6 {[%emt 0:00:28]} 40. gxf6 {[%emt 0:00:09]} Qf8 {[%emt 0:00:29]} 41. Bf4 {[%emt 0:00:22]} Nf7 {[%emt 0:00:36]} 42. Qe4+ {[%emt 0:00:21]} Kg8 {[%emt 0:01:50]} 43. Qxb7 {[%emt 0:00:02]} a5 {[%emt 0:00:40]} 44. Qe4 {[%emt 0:00:23]} Kh8 {[%emt 0:00:46]} 45. Kf2 {[%emt 0:00:51]} Qg8 {[%emt 0:00:18]} 46. Qf5 {[%emt 0:00:45]} Qh7 {[%emt 0:00:26]} 47. Qxc5 {[%emt 0:00:31]} Qg6 {[%emt 0:00:09]} 48. Qxd4 {[%emt 0:00:15]} Qf5 {[%emt 0:00:31]} 49. Ke1 {[%emt 0:01:11]} Qg4 {[%emt 0:00:35]} 50. g3 {[%emt 0:00:12]} Qe6+ {[%emt 0:00:39]} 51. Kd2 {[%emt 0:00:06]} h5 {[%emt 0:00:25]} 52. c4 {[%emt 0:00:21]} Qf5 {[%emt 0:00:40]} 53. c5 {[%emt 0:00:14]} Qe6 {[%emt 0:00:08]} 54. Qc4 {[%emt 0:00:23]} 1-0

[Event "Uralsk-ch Men 2019"]
[Site "Khanty-Mansiysk"]
[Date "2019.03.17"]
[Round "6.6"]
[White "Alexsander, Dubinin"]
[Black "Popov, Mikhail"]
[Result "0-1"]
[ECO "B03"]
[WhiteElo "2180"]
[BlackElo "2381"]
[Annotator "NA"]
[PlyCount "124"]
[EventDate "2019.03.12"]
[EventType "swiss"]
[EventCountry "RUS"]
[SourceTitle "playchess.com"]
[Source "ChessBase"]
[SourceQuality "1"]
[TimeControl "5400+30"]

1. e4 {[%emt 0:00:00]} Nf6 {[%emt 0:00:53]} 2. e5 {[%emt 0:00:00]} Nd5 {[%emt 0:00:05]} 3. d4 {[%emt 0:00:00]} d6 {[%emt 0:00:05]} 4. c4 {[%emt 0:00:12]} Nb6 {[%emt 0:00:05]} 5. exd6 {[%emt 0:00:24]} exd6 {[%emt 0:00:05]} 6. Be3 {[%emt 0:08:04] LiveBook: 26 Games} Be7 {[%emt 0:00:16]} 7. Bd3 {[%emt 0:07:34]} O-O {[%emt 0:04:00]} 8. Ne2 {[%emt 0:00:48]} Na6 {[%emt 0:13:04]} 9. Nd2 {[%emt 0:09:16]} Nb4 {[%emt 0:07:53]} 10. Bb1 {[%emt 0:02:14]} Bg5 {[%emt 0:03:59]} 11. O-O {[%emt 0:09:45]} Bg4 {[%emt 0:07:01]} 12. a3 {[%emt 0:06:18]} Nc6 {[%emt 0:03:27]} 13. Qc2 $11 {[%emt 0:01:06]} f5 {[%emt 0:01:51]} 14. Bxg5 {[%emt 0:11:02]} Qxg5 {[%emt 0:00:09]} 15. Nb3 {[%emt 0:00:48]} d5 {[%emt 0:06:28]} 16. c5 {[%emt 0:05:55]} Nc4 {[%emt 0:03:06]} 17. Ng3 {[%emt 0:00:41]} a5 {[%emt 0:10:17]} 18. f4 {[%emt 0:06:28]} Qf6 {[%emt 0:08:51]} 19. Qc3 {[%emt 0:00:30]} a4 {[%emt 0:08:00]} 20. Nd2 {[%emt 0:00:18]} Nxd2 {[%emt 0:00:59]} 21. Qxd2 {[%emt 0:00:11]} Qxd4+ {[%emt 0:02:01]} 22. Rf2 {[%emt 0:01:37]} h5 {[%emt 0:04:06]} 23. Ba2 {[%emt 0:01:41]} Rad8 {[%emt 0:01:31]} 24. Nf1 {[%emt 0:01:07]} Rfe8 {[%emt 0:02:09]} 25. Re1 {[%emt 0:02:47]} Rxe1 {[%emt 0:02:23]} 26. Qxe1 {[%emt 0:00:03]} Kf8 {[%emt 0:05:14]} 27. Qe6 {[%emt 0:02:05]} Re8 {[%emt 0:01:11]} 28. Qxd5 {[%emt 0:03:22]} Qxd5 {[%emt 0:00:02]} 29. Bxd5 {[%emt 0:00:01]} Re1 {[%emt 0:00:07]} 30. Rd2 {[%emt 0:09:03]} Be2 {[%emt 0:00:44]} 31. Kf2 {[%emt 0:00:06]} Rxf1+ {[%emt 0:00:02]} 32. Kxe2 {[%emt 0:00:07]} Rxf4 {[%emt 0:00:24]} 33. g3 {[%emt 0:01:27]} Rg4 {[%emt 0:00:37]} 34. Bxc6 {[%emt 0:00:39]} bxc6 {[%emt 0:00:01]} 35. Rd7 {[%emt 0:00:19]} Rc4 {[%emt 0:00:50]} 36. Rxc7 {[%emt 0:00:34]} Rxc5 {[%emt 0:00:05]} 37. Kd3 {[%emt 0:01:22]} Rc1 {[%emt 0:02:11]} 38. Ra7 {[%emt 0:00:40]} Rb1 {[%emt 0:00:17]} 39. Kc3 {[%emt 0:00:38]} Rh1 {[%emt 0:00:18]} 40. Rxa4 {[%emt 0:01:23]} Rxh2 {[%emt 0:00:04]} 41. Kd4 {[%emt 0:01:01]} Rxb2 {[%emt 0:00:49]} 42. Ke5 {[%emt 0:00:17]} Rb3 {[%emt 0:00:57]} 43. Ra8+ {[%emt 0:04:32]} Kf7 {[%emt 0:00:10]} 44. Kxf5 {[%emt 0:00:06]} Rxg3 {[%emt 0:00:18]} 45. a4 {[%emt 0:00:52]} h4 {[%emt 0:03:02]} 46. a5 {[%emt 0:01:25]} h3 {[%emt 0:00:44]} 47. Rh8 {[%emt 0:00:53]} Ra3 {[%emt 0:00:20]} 48. a6 {[%emt 0:00:14]} Rxa6 {[%emt 0:00:09]} 49. Rxh3 {[%emt 0:00:14]} Ra5+ {[%emt 0:00:05]} 50. Kf4 {[%emt 0:00:23]} Rd5 {[%emt 0:01:25]} 51. Rc3 {[%emt 0:00:29]} Rd6 {[%emt 0:00:03]} 52. Kg5 {[%emt 0:01:28]} Ke7 {[%emt 0:01:02]} 53. Rc1 {[%emt 0:00:33]} Kf7 {[%emt 0:01:04]} 54. Rf1+ {[%emt 0:00:56]} Rf6 {[%emt 0:00:12]} 55. Rc1 {[%emt 0:00:29]} g6 {[%emt 0:00:13]} 56. Kg4 {[%emt 0:00:05]} Rd6 {[%emt 0:00:26]} 57. Rf1+ {[%emt 0:00:18]} Ke7 {[%emt 0:00:17]} 58. Kg5 {[%emt 0:00:12]} c5 {[%emt 0:00:20]} 59. Ra1 {[%emt 0:01:04]} Rc6 {[%emt 0:01:08]} 60. Ra7+ {[%emt 0:00:41]} Ke6 {[%emt 0:00:05]} 61. Kxg6 {[%emt 0:00:19]} c4 {[%emt 0:00:08]} 62. Ra2 {[%emt 0:00:32]} c3 {[%emt 0:00:07]} 0-1